Cogmind - Beta 11 X5 @@@ ROGUE MODE // 2021.07.05 @ 22:18:35 Player: Exp. Geonium Core Result: Destroyed by Y-54 Guardian with Gatling Laser Performance ------------- Evolutions (3) 1500 Regions Visited (8) 1600 Robots Destroyed (28) 140 Value Destroyed (1233) 1233 Prototype IDs (25) 500 Alien Tech Used (0) 0 Bonus (1470) 1470 TOTAL SCORE: 6443 Bonus ------- Pacifist 270 Entered Garrisons 400 Used RIF Installer 500 Aligned with FarCom 300 Cogmind --------- Core Integrity 0/700 Matter 300/300 Energy 160/160 System Corruption 0% Temperature Cool (8) Movement Flying (109) Ox1 Location -7/Garrison Parts ------- > --- POWER (1) -------- Light Nuclear Core > --- PROPULSION (4) --- VTOL Module VTOL Module VTOL Module > --- UTILITY (5) ------ Improved Cooling System Improved Melee Analysis Suite Relay Coupler [Grunt] (29) > --- WEAPON (3) ------- Improved Datajack Greatsword > --- INVENTORY (5) ---- Actuator Array Heavy Armor Plating Relay Coupler [NC] (27) Impact Mace Peak State ------------ > --- POWER ------------ Reinforced Fission Core > --- PROPULSION ------- Carbon-fiber Leg Improved Titanium Leg Advanced Myomer Leg > --- UTILITY ---------- Large Storage Unit Improved Melee Analysis Suite Improved Melee Analysis Suite Heavy Armor Plating > --- WEAPON ----------- Impact Mace Scythe Spear > --- INVENTORY -------- Light Deuterium Engine Improved Cooling System Improved Cooling System Actuator Array Improved Weapon Shielding Heavy Armor Plating Relay Coupler [NC] Relay Coupler [Sentry] Relay Coupler [Hunter] Guided Plasma Cannon Improved Datajack Greatsword [Rating: 53] Favorites ----------- Power Reinforced Fission Core Engine Ion Engine Power Core Reinforced Fission Core Propulsion Aluminum Leg Treads Light Treads Leg Aluminum Leg Flight Unit VTOL Module Utility Improved Melee Analysis Suite Device Heat Sink Storage Small Storage Unit Processor Improved Melee Analysis Suite Hackware Relay Coupler [Grunt] Protection Heavy Armor Plating Weapon Scythe Energy Gun Medium Laser Energy Cannon Guided Plasma Cannon Impact Weapon Impact Mace Slashing Weapon Scythe Piercing Weapon Spear Special Melee Weapon Improved Datajack Build | -11 -10 -10 -10 -9 -8 -8 -7 -7 ------- Run | Scr Mat Min Exi Min Mat Gar Fac Gar Slots Evolved 6 | . . . . . 4 . 2 . Power . | . . . . . . . . . Propulsion 2 | . . . . . 2 . . . Utility 3 | . . . . . 2 . 1 . Weapon 1 | . . . . . . . 1 . Parts Attached 54 | . . . 6 . 19 5 8 16 Power 6 | . . . . . 2 1 1 2 Engine . | . . . . . . . . . Core 6 | . . . . . 2 1 1 2 Reactor . | . . . . . . . . . Propulsion 15 | . . . 2 . 5 1 2 5 Treads 3 | . . . 2 . . . . 1 Leg 8 | . . . . . 5 1 2 . Wheel . | . . . . . . . . . Hover . | . . . . . . . . . Flight 4 | . . . . . . . . 4 Utility 22 | . . . 1 . 10 2 3 6 Device 4 | . . . 1 . . . . 3 Storage 5 | . . . . . 5 . . . Processor 6 | . . . . . 4 . 2 . Hackware 2 | . . . . . . . . 2 Protection 5 | . . . . . 1 2 1 1 Artifact . | . . . . . . . . . Weapon 11 | . . . 3 . 2 1 2 3 Energy Gun 2 | . . . 2 . . . . . Energy Cannon 4 | . . . 1 . 1 1 . 1 Ballistic Gun . | . . . . . . . . . Ballistic Cannon . | . . . . . . . . . Launcher . | . . . . . . . . . Special Weapon . | . . . . . . . . . Impact Weapon 1 | . . . . . . . 1 . Slashing Weapon 2 | . . . . . 1 . . 1 Piercing Weapon 1 | . . . . . . . 1 . Special Melee Weapon 1 | . . . . . . . . 1 Unidentified Prototypes 2 | . . . . . 1 . 1 . Parts Lost 20 | . . . 2 . . 5 1 12 Power 1 | . . . . . . 1 . . Propulsion 9 | . . . 1 . . 2 1 5 Utility 7 | . . . . . . 2 . 5 Weapon 3 | . . . 1 . . . . 2 Highest Loss Streak 5 | . . . 2 . . 3 1 5 Average Slot Usage (%) 80 | . 85 85 81 57 96 89 76 62 Engine 4 | . 14 14 13 . . . . . Core 3 | . . . . . 9 5 6 2 Treads 6 | . . . 11 28 11 . . 3 Leg 19 | . 28 28 16 . 24 33 24 2 Device 2 | . . . . 14 4 . . 3 Storage 9 | . 14 14 13 . 8 9 7 4 Processor 8 | . . . . . 16 13 14 12 Protection 3 | . . . . . 4 10 7 5 Energy Gun 9 | . 28 28 24 14 1 . . . Energy Cannon 2 | . . . . . 8 7 . . Impact Weapon 1 | . . . . . . . 3 4 Slashing Weapon 4 | . . . . . 7 9 7 6 Piercing Weapon 1 | . . . . . . . 4 5 Naked Turns . | . . . . . . . . . Heaviest Build 63 | 14 14 14 15 3 54 60 63 63 Greatest Support 80 | 20 20 20 20 3 65 70 80 65 Greatest Overweight (x) 15 | . . . 1 . 1 . . 15 Average Overweight (x) . | . . . . . . . . . Largest Inventory Capacity 15 | . 8 8 8 5 15 15 15 15 Average Capacity 10 | . 8 8 7 5 9 15 15 11 Most Carried 15 | . 6 7 8 5 15 15 15 15 Average Carried 8 | . 6 6 6 5 5 13 9 11 Final Capacity 15 | 8 8 8 5 5 15 15 15 5 Final Carried 15 | 6 6 7 5 5 15 12 15 5 Class Distribution -------------------- 85% | Mutant 8% | Scavenger-Mutant 3% | Bothacker-Mutant Dominant Class ---------------- Mutant | -10/Materials Mutant | -10/Mines Mutant | -10/Exiles Mutant | -9/Mines Mutant | -8/Materials Mutant | -8/Garrison Mutant | -7/Factory Mutant | -7/Garrison Resources | -11 -10 -10 -10 -9 -8 -8 -7 -7 ----------- Run | Scr Mat Min Exi Min Mat Gar Fac Gar Matter Collected 772 | 200 . . 60 . 190 40 132 150 Remotely . | . . . . . . . . . Salvage Created 1164 | . . . 36 . 486 210 179 253 Parts 50 | . . . . . 21 6 11 12 Haulers Intercepted 1 | . . . . . 1 . . . Recyclers Shooed . | . . . . . . . . . Parts Field Recycled . | . . . . . . . . . Retrieved Matter . | . . . . . . . . . Parts Self-Destructed . | . . . . . . . . . Prevented . | . . . . . . . . . Kills | -11 -10 -10 -10 -9 -8 -8 -7 -7 ------- Run | Scr Mat Min Exi Min Mat Gar Fac Gar Combat Hostiles Destroyed 25 | . . . 3 . 5 6 4 7 Melee 17 | . . . . . 5 2 4 6 Cannons 8 | . . . 3 . . 4 . 1 Classes Destroyed 10 | . . . 1 . 6 1 2 . Worker 1 | . . . . . . . 1 . Builder 1 | . . . . . . . 1 . Hauler 1 | . . . . . 1 . . . Recycler 2 | . . . . . 2 . . . Watcher 1 | . . . . . 1 . . . Swarmer 11 | . . . . . . 3 3 5 Grunt 5 | . . . . . 2 3 . . Sentry 5 | . . . . . 2 . 1 2 Hunter 1 | . . . . . 1 . . . Assembled 3 | . . . 3 . . . . . Best Kill Streak 4 | . . . 3 . 3 2 2 4 Combat Bots Only 4 | . . . 3 . 2 2 2 4 Max Kills in Single Turn 1 | . . . 1 . 1 1 1 1 Gunslinging . | . . . . . . . . . Exploded . | . . . . . . . . . Melee 1 | . . . . . 1 1 1 1 Uniques/NPCs Destroyed . | . . . . . . . . . Combat | -11 -10 -10 -10 -9 -8 -8 -7 -7 -------- Run | Scr Mat Min Exi Min Mat Gar Fac Gar Damage Taken 4022 | . . . 470 . 382 1244 345 1581 Core 1044 | . . . 97 . 61 186 77 623 Absorbed by Shields 45 | . . . . . . . . 45 Core Remaining (%) 72 | 100 . . . 61 . 55 . . Volleys Fired 20 | . . . 6 . 8 4 . 2 Largest 2 | . . . 2 . 1 1 . 1 Hottest 120 | . . . 120 . 120 120 . 120 Shots Fired 23 | . . . 9 . 8 4 . 2 Gun 6 | . . . 6 . . . . . Cannon 17 | . . . 3 . 8 4 . 2 Launcher . | . . . . . . . . . Special . | . . . . . . . . . Kinetic . | . . . . . . . . . Thermal 20 | . . . 6 . 8 4 . 2 Explosive . | . . . . . . . . . Electromagnetic 3 | . . . 3 . . . . . Robot Hit Streak 14 | . . . 5 . 8 12 . 14 Robot Miss Streak 1 | . . . 1 . . . . . Penetration Max . | . . . . . . . . . Secondary Targets . | . . . . . . . . . Shots Hit Robots 84 | . . . 6 . 20 12 16 30 Core Hits 36 | . . . 4 . 9 6 7 10 Critical Kills . | . . . . . . . . . Critical Parts Destroyed . | . . . . . . . . . Critical Strikes 5 | . . . 1 . . 2 1 1 Burn 1 | . . . 1 . . . . . Sever 4 | . . . . . . 2 1 1 Melee Attacks 103 | . . . . . 18 21 23 41 Impact 5 | . . . . . . . 1 4 Slashing 69 | . . . . . 18 21 18 12 Piercing 29 | . . . . . . . 4 25 Sneak Attacks 9 | . . . . . 6 . 3 . Combat Hostiles . | . . . . . . . . . Follow-up Attacks 5 | . . . . . . . . 5 Damage Inflicted 3221 | . . . 112 . 1050 419 714 926 Guns 3 | . . . 3 . . . . . Cannons 562 | . . . 109 . 253 130 . 70 Explosions . | . . . . . . . . . Melee 2626 | . . . . . 797 259 714 856 Ramming 30 | . . . . . . 30 . . Kinetic . | . . . . . . . . . Thermal 564 | . . . 111 . 253 130 . 70 Explosive . | . . . . . . . . . Electromagnetic 1 | . . . 1 . . . . . Impact 103 | . . . . . . . . 103 Slashing 1665 | . . . . . 797 259 417 192 Piercing 858 | . . . . . . . 297 561 Highest Corruption . | . . . . . . . . . Average Corruption . | . . . . . . . . . Corruption Purged . | . . . . . . . . . Overload Shots . | . . . . . . . . . Overflow Damage 356 | . . . . . 159 26 129 42 Projectiles 32 | . . . . . 32 . . . Explosions . | . . . . . . . . . Melee 324 | . . . . . 127 26 129 42 Knockbacks . | . . . . . . . . . Impact . | . . . . . . . . . Kinetic . | . . . . . . . . . Secondary . | . . . . . . . . . Self-Inflicted Damage . | . . . . . . . . . Shots . | . . . . . . . . . Rammed . | . . . . . . . . . Targets Rammed 1 | . . . . . . 1 . . Kicked 1 | . . . . . . 1 . . Crushed . | . . . . . . . . . Highest Temperature 344 | . . . 260 . 275 344 . 44 Average Temperature 132 | . . . 87 . 97 190 . 14 Received Heat Transfer 1068 | . . . 60 . 99 666 12 231 Effects 5 | . . . . . 1 4 . . Shutdowns 1 | . . . . . . 1 . . Energy Bleed 1 | . . . . . 1 . . . Interference 2 | . . . . . . 2 . . Matter Decay 1 | . . . . . . 1 . . Siege Activations . | . . . . . . . . . Robots Corrupted . | . . . . . . . . . Combat Hostiles . | . . . . . . . . . Parts Fried . | . . . . . . . . . Impact Corruptions . | . . . . . . . . . Robots Melted . | . . . . . . . . . Combat Hostiles . | . . . . . . . . . Parts Melted 2 | . . . . . 2 . . . Heat Transferred 1316 | . . . 276 . 560 320 . 160 Parts Sabotaged . | . . . . . . . . . Parts Stolen . | . . . . . . . . . Parts Stripped . | . . . . . . . . . Power Chain Reactions . | . . . . . . . . . Missiles Intercepted . | . . . . . . . . . Alert | -11 -10 -10 -10 -9 -8 -8 -7 -7 ------- Run | Scr Mat Min Exi Min Mat Gar Fac Gar Peak Influence 321 | . . . . . 188 258 321 290 Initial 130 | . . . . . . 53 130 95 Average 131 | . . . . . 85 136 227 183 Maximum Alert Level 1 | . . . . . . 1 1 1 Low Security (%) 77 | . 100 100 . 100 100 88 41 63 Level 1 22 | . . . . . . 11 58 36 Level 2 . | . . . . . . . . . Level 3 . | . . . . . . . . . Level 4 . | . . . . . . . . . Level 5 . | . . . . . . . . . High Security . | . . . . . . . . . Max Security . | . . . . . . . . . Squads Dispatched 3 | . . . . . 2 . 1 . Investigation 2 | . . . . . 1 . 1 . Extermination . | . . . . . . . . . Reinforcement 1 | . . . . . 1 . . . Assault . | . . . . . . . . . Garrison . | . . . . . . . . . Intercept . | . . . . . . . . . Construction Impeded . | . . . . . . . . . Haulers Reinforced . | . . . . . . . . . Cargo Convoy Interrupts . | . . . . . . . . . Stealth | -11 -10 -10 -10 -9 -8 -8 -7 -7 --------- Run | Scr Mat Min Exi Min Mat Gar Fac Gar Distress Signals . | . . . . . . . . . Communications Jammed . | . . . . . . . . . Distress Signals . | . . . . . . . . . Times Spotted 61 | . . . 8 . 12 16 10 15 Peak Tracking Total 9 | . . . 9 . 5 9 4 5 Tactical Retreats 7 | . . . . . . 2 3 2 Traps | -11 -10 -10 -10 -9 -8 -8 -7 -7 ------- Run | Scr Mat Min Exi Min Mat Gar Fac Gar Traps Triggered 2 | . . . . . . . . 2 Indirectly . | . . . . . . . . . Trap Hack Attempts . | . . . . . . . . . Triggered . | . . . . . . . . . Disarmed . | . . . . . . . . . Reprogrammed . | . . . . . . . . . Reused 3 | . . . 3 . . . . . Traps Extracted . | . . . . . . . . . Installed 3 | . . . 3 . . . . . Triggered . | . . . . . . . . . Exploded 3 | . . . 3 . . . . . Machines | -11 -10 -10 -10 -9 -8 -8 -7 -7 ---------- Run | Scr Mat Min Exi Min Mat Gar Fac Gar Machines Disabled 4 | . . . 2 . . 1 . 1 Max in Single Turn 1 | . . . 1 . . 1 . 1 Garrison Relay 2 | . . . . . . 1 . 1 Machines Sabotaged . | . . . . . . . . . Garrisons Compromised . | . . . . . . . . . Overloaded Fab Kills . | . . . . . . . . . Fab Network Shutdowns . | . . . . . . . . . Hacking | -11 -10 -10 -10 -9 -8 -8 -7 -7 --------- Run | Scr Mat Min Exi Min Mat Gar Fac Gar Machines Accessed 6 | . 1 . 1 . 2 . 2 . Terminals 2 | . 1 . . . 1 . . . Fabricators . | . . . . . . . . . Repair Stations . | . . . . . . . . . Recycling Units . | . . . . . . . . . Scanalyzers 1 | . . . . . . . 1 . Garrison Access 2 | . . . . . 1 . 1 . Total Hacks 13 | . 1 . 1 . 5 . 6 . Successful 6 | . . . 1 . 1 . 4 . Failed 7 | . 1 . . . 4 . 2 . Catastrophic . | . . . . . . . . . Database Lockouts . | . . . . . . . . . Manual 4 | . 1 . 1 . 2 . . . Terminals 3 | . 1 . . . 2 . . . Fabricators . | . . . . . . . . . Repair Stations . | . . . . . . . . . Recycling Units . | . . . . . . . . . Scanalyzers 5 | . . . . . . . 5 . Garrison Access 4 | . . . . . 3 . 1 . Terminal Hacks 1 | . . . 1 . . . . . EX-Prototype ID Bank 1 | . . . 1 . . . . . Fabricator Hacks . | . . . . . . . . . Repair Station Hacks . | . . . . . . . . . Recycling Unit Hacks . | . . . . . . . . . Scanalyzer 3 | . . . . . . . 3 . Insert Component 1 | . . . . . . . 1 . Analyze 2 | . . . . . . . 2 . Garrison Access Hacks 2 | . . . . . 1 . 1 . Unlock Access 2 | . . . . . 1 . 1 . Unauthorized Hacks . | . . . . . . . . . Terminals . | . . . . . . . . . Fabricators . | . . . . . . . . . Repair Stations . | . . . . . . . . . Recycling Units . | . . . . . . . . . Scanalyzers . | . . . . . . . . . Garrison Access . | . . . . . . . . . Data Cores Recovered . | . . . . . . . . . Used . | . . . . . . . . . Hacking Detections 5 | . 1 . . . 2 . 2 . Full Trace Events 2 | . . . . . 1 . 1 . Feedback Events . | . . . . . . . . . Feedback Blocked . | . . . . . . . . . Robot Schematics Acquired . | . . . . . . . . . Robots Built . | . . . . . . . . . Matter . | . . . . . . . . . Time . | . . . . . . . . . Total Robot Build Rating . | . . . . . . . . . Part Schematics Acquired . | . . . . . . . . . Parts Built . | . . . . . . . . . Matter . | . . . . . . . . . Time . | . . . . . . . . . Total Part Build Rating . | . . . . . . . . . Parts Repaired . | . . . . . . . . . Time . | . . . . . . . . . Parts Recycled . | . . . . . . . . . Recycled Matter . | . . . . . . . . . Retrieved Matter . | . . . . . . . . . Retrieved Components . | . . . . . . . . . Parts Scanalyzed 1 | . . . . . . . 1 . Part Schematics Acquired . | . . . . . . . . . Parts Damaged . | . . . . . . . . . Bothacking | -11 -10 -10 -10 -9 -8 -8 -7 -7 ------------ Run | Scr Mat Min Exi Min Mat Gar Fac Gar Used RIF Installer 1 | . . . . . . 1 . . Robots Hacked . | . . . . . . . . . Non-combat . | . . . . . . . . . Combat . | . . . . . . . . . Robot Hacks Applied . | . . . . . . . . . Relay Couplers Released 10 | . . . . . . 5 . 5 Machine Destruction 10 | . . . . . . 5 . 5 Attached 2 | . . . . . . . . 2 Robots Rewired . | . . . . . . . . . Allies Hacked . | . . . . . . . . . Hacks Repelled . | . . . . . . . . . Allies | -11 -10 -10 -10 -9 -8 -8 -7 -7 -------- Run | Scr Mat Min Exi Min Mat Gar Fac Gar Total Allies 3 | . . 3 . . . . . . Largest Group 3 | . . 3 3 . . . . . Highest-Rated Group 40 | . . 40 40 . . . . . Highest-Rated Ally 16 | . . 16 16 . . . . . Total Orders 1 | . . . 1 . . . . . STAY 1 | . . . 1 . . . . . Ally Attacks 11 | . . . 11 . . . . . Total Damage 25 | . . . 25 . . . . . Kills . | . . . . . . . . . Allies Corrupted . | . . . . . . . . . Allies Melted . | . . . . . . . . . Intel | -11 -10 -10 -10 -9 -8 -8 -7 -7 ------- Run | Scr Mat Min Exi Min Mat Gar Fac Gar Robot Analysis Total . | . . . . . . . . . Derelict Logs Recovered 1 | . . . . 1 . . . . Drone Launches . | . . . . . . . . . Drone Recoveries . | . . . . . . . . . Exploration | -11 -10 -10 -10 -9 -8 -8 -7 -7 ------------- Run | Scr Mat Min Exi Min Mat Gar Fac Gar Turns Passed 2420 | . 54 137 626 124 455 244 449 331 Spaces Moved 1600 | 1 46 93 348 248 270 138 301 155 Core 296 | . . . 38 248 2 . . 8 Treads 46 | . . . . . . . . 46 Legs 1173 | 1 46 93 310 . 268 138 301 16 Wheels . | . . . . . . . . . Hover . | . . . . . . . . . Flight 85 | . . . . . . . . 85 Fastest Speed 26 | 120 120 120 50 50 50 120 120 26 Average Speed 117 | 120 120 120 153 50 126 120 122 116 Slowest Speed 800 | 120 120 120 200 50 200 120 123 800 Overloaded Moves . | . . . . . . . . . Propulsion Burnouts . | . . . . . . . . . Robots Hopped . | . . . . . . . . . Cave-ins Triggered . | . . . . . . . . . Exploration Rate (%) 30 | 2 23 20 61 69 22 36 12 32 Regions Visited 8 Branch Regions 3 Pre-discovered Areas . | . . . . . . . . . Known Exits Taken 2 | . . . . . 1 . 1 . Unknown Exits Taken 5 | 1 1 1 1 1 . . . . Scrap Searched 2 | . . 1 . 1 . . . . Spaces Dug 2 | . . . . . . . 2 . Terrain Destroyed 3 | . . . . . 1 . 2 . Melee 2 | . . . . . . . 2 . Projectile 1 | . . . . . 1 . . . AOE . | . . . . . . . . . Terrain Rammed . | . . . . . . . . . Walls Destroyed . | . . . . . . . . . Machines Disabled . | . . . . . . . . . Actions | -11 -10 -10 -10 -9 -8 -8 -7 -7 --------- Run | Scr Mat Min Exi Min Mat Gar Fac Gar Total 1978 | . 45 119 437 247 348 184 349 249 Wait 111 | . . 22 51 . 11 5 10 12 Move 1594 | . 45 92 347 247 270 137 301 155 Hop . | . . . . . . . . . Pick Up 41 | . . 3 9 . 12 3 7 7 Fast Attach 19 | . . . 1 . 6 . 2 10 Attach 28 | . . . 5 . 8 5 6 4 Detach 12 | . . . 3 . 2 3 2 2 Swap 7 | . . . . . 5 . . 2 Drop 33 | . . 2 12 . 8 5 . 6 Fire 20 | . . . 6 . 8 4 . 2 Melee 93 | . . . . . 18 21 21 33 Ram . | . . . . . . . . . Kick 1 | . . . . . . 1 . . Crush . | . . . . . . . . . Escape Stasis 16 | . . . . . . . . 16 Rewire . | . . . . . . . . . Trap 3 | . . . 3 . . . . . Miscellaneous . | . . . . . . . . . Route ------- -11/Scrapyard -10/Materials -10/Mines -10/Exiles -9/Mines -8/Materials -8/Garrison -7/Factory (discovered 2 exits: [*Low] / Gar) -7/Garrison History --------- Turn | Location | Event 1 | -11/Scrapyard | Discovered new exit (range 0) 1 | -11/Scrapyard | Entered Materials 47 | -10/Materials | Discovered new exit (range 7) 55 | -10/Materials | Entered Mines 63 | -10/Mines | Assisted by bots powering up and referring to "LRC-V3" 97 | -10/Mines | Found a hidden stash of uninstalled traps 180 | -10/Mines | Deemed a non-threat by the Exiles lab entrance 180 | -10/Mines | Discovered new exit (range 5) 192 | -10/Mines | Entered Exiles 192 | -10/Exiles | Accompanied by 3 allies 236 | -10/Exiles | Met 8R-AWN 253 | -10/Exiles | Met EX-HEX 286 | -10/Exiles | Met EX-BIN 301 | -10/Exiles | Aligned with FarCom system 302 | -10/Exiles | Given EX-Vault access code 304 | -10/Exiles | Build established: Mutant 330 | -10/Exiles | Opened EX-Vault 345 | -10/Exiles | Found Gui. Plasma Cannon 388 | -10/Exiles | Warned to stay clear of 0b10 Research branches 444 | -10/Exiles | Met EX-DEC 558 | -10/Exiles | Discovered new exit (range 10) 664 | -10/Exiles | Attacked by the Exiles 818 | -10/Exiles | Left Exiles lab with Gui. Plasma Cannon 818 | -10/Exiles | Entered Mines 939 | -9/Mines | Discovered new exit (range 7) 940 | -9/Mines | Learned Materials trap positions 942 | -9/Mines | Entered Materials 942 | -8/Materials | Evolved 4 slots: Propulsion x2, Utility x2 943 | -8/Materials | Loaded intel: 24 trap records 1397 | -8/Materials | Identified exit to Garrison 1397 | -8/Materials | Entered Garrison 1403 | -8/Garrison | Installed Relay Interface Framework 1436 | -8/Garrison | Garrison Relay disabled 1458 | -8/Garrison | Triggered checkpoint 1566 | -8/Garrison | Triggered checkpoint 1566 | -8/Garrison | Triggered checkpoint 1566 | -8/Garrison | Triggered checkpoint 1617 | -8/Garrison | Lost 3 parts (2n1u) 1632 | -8/Garrison | Discovered new exit (range 8) 1641 | -8/Garrison | Entered Factory 1641 | -7/Factory | Evolved 2 slots: Utility x1, Weapon x1 1818 | -7/Factory | Discovered new exit (range 16) 2090 | -7/Factory | Identified exit to Garrison 2090 | -7/Factory | Entered Garrison 2106 | -7/Garrison | Triggered checkpoint 2165 | -7/Garrison | Lost 4 parts (3n1u) 2195 | -7/Garrison | Garrison Relay disabled 2303 | -7/Garrison | Core integrity fell below 50% 2334 | -7/Garrison | Core integrity fell below 20% 2377 | -7/Garrison | Lost 5 parts (1n2u2w) 2410 | -7/Garrison | Triggered checkpoint 2412 | -7/Garrison | Triggered checkpoint 2421 | -7/Garrison | Destroyed by Y-54 Guardian with Gatling Laser Last Messages --------------- 02409_ Field strength at 65. 02410_ Beams of light sweep through the air. An alarm sounds. 02410_ Field strength at 60. 02411_ Field strength at 55. 02412_ Beams of light sweep through the air. An alarm sounds. 02412_ Field strength at 50. 02413_ Relay Coupler [Sentry] destroyed. 02413_ Imp. Weapon Shielding destroyed. 02413_ Field strength at 23. 02414_ Field strength at 13. 02415_ Field strength at 3. 02416_ Stasis field depleted. 02417_ Triggered Stasis Trap. 02417_ A bubble of rippling energy engulfs the area. 02417_ Field strength at 95. 02417_ Field strength at 90. 02418_ Field strength at 85. 02419_ Field strength at 80. 02420_ Field strength at 75. 02421_ VTOL Module destroyed. Map ----- +----------------------------------------------------+ | ?????????????????????????????????????????????????? | | ?????????????????????????????????????????????????? | | ?????????????????????????????????????????????????? | | ?????????????????????????????????????????????????? | | ?????????????????????????????????????????????????? | | ?????????????????????????????????????????????????? | | ?????????????????????????????????????????????????? | | ?????????????????????????????????????????????????? | | ?????????????????????????????????????????????????? | | ?????????????????????????????????????????????????? | | ?????????????????????????????????????????????????? | | ?????????????????????????????????????????????????? | | ?????????????????????????????????????????????????? | | ?????????????????????????????????????????????????? | | ?????????????????????????????????????????????????? | | ?????????????????????????????????????????????????? | | ?????????????????????????????????????????????????? | | ?????????????????????????????????????????????????? | | ?????????????????????????????????????????????????? | | ?????????????????????????????????????????????????? | | ?????????????###?????????????????#???????????????? | | ?????????????# ?????????????? #???????????????? | | ????????## ## Y ############ #???????????????? | | ????????# #???????????????? | | ???????? #???????????????? | | ???????? gg @ #???????????????? | | ????????? ??# ##^ g###########???????????????? | | ????????# ## ## #?????????????????????????? | | ????????" ?????????????????????????? | | ????????" ?????????????????????????? | | ????????" ????????????????????????? | | ????????" ????????????###?????????? | | ????????# ## ## ###???????????#"###???????? | | ???????## ## ## #?????????????#" #???????? | | ??????? #??###????????#"!!#???????? | | ??????? #?? #????????# #???????? | | ????????# #??# #????????#"#!#???????? | | ????????## ##""""## ##??# #????????### #???????? | | ???????????????????# #???# #??????????# #???????? | | ???????????????????# #???# #??????????# #???????? | | ???????????????????# #???#/#??????????# ###?????? | | ???????????????????# #???#[#########??# #?????? | | ???????????????????#" #???#= / # #?????? | | ???????????????????#%"#???#[###### ##??# #?????? | | ???????????????????#" #####"######+#???# [ #?????? | | ???????????????????# * #???#!%!#?????? | | ???????????????????# *! !* #####%###?????? | | ???????????????????##+########### * #???????? | | ????????????????????# #?????????# #######???????? | | ????????????????????# #?????????# #?????????????? | +----------------------------------------------------+ Best States ------------- Heat Dissipation 61 Energy Generation 19 Energy Capacity 310 Matter Stores 300 Matter Capacity 300 Sight Range 20 Terrain Scan Density 10 Armor Coverage 600 Weapon Shielding 66 Evasion (%) 64 Melee Accuracy 12 Recoil Reduction 2 Relay Coupler Types 51 Relay Coupler Value 2 Item Schematics ----------------- None Robot Schematics ------------------ None Fabricated ------------ Nothing Alien Tech Used ----------------- None Achievements -------------- None Challenges ------------ None Game ------ Seed ChromaticWeldingAirjet Manual? 0 Play Time 00:29:08 Cumulative 138.6 hours Start 2021.07.04 @ 15:57:55 End 2021.07.05 @ 22:18:35 Sessions 1 Manual Loads 0 Difficulty Rogue Special Mode None Game No. 209 Rogue 209 Adventurer 0 Explorer 0 Win Type - Total 6 Types 5/0/0/1/0/0/0/0/0 Lore% 51 Gallery% 75 Achievement% 60 Wizard Run 0 Options --------- ASCII 0 Keyboard 0 Movement Mouse Keybinds 0 Fullscreen 1 Font 18/Terminus Map View 76x50 Tactical HUD 1 Map Filters NONE Filters NONE Steam 1 RUN: e2c5bec2-bab0-4b94-bc04-41683b628bdf